bitfinex-derivatives/quotes_ETHF0:USTF0_20250904
["timestamp","ask_amount","ask_price","bid_price","bid_amount"]
[1756993907482,3.2078,4379.2,4379.1,0.248]
[1756993907682,3.2078,4379.2,4379.0,0.248]
[1756993907883,3.2078,4379.2,4378.9,0.247]
[1756993909090,3.2078,4379.2,4378.4,0.247]
[1756993909386,4.04813802,4380.2,4378.4,0.247]
[1756993909387,3.2078,4378.5,4378.4,0.247]
[1756993910289,3.2078,4378.5,4378.4,4.0696]
[1756993911088,3.2078,4378.5,4378.4,8.0696]
[1756993911878,3.2078,4379.0,4378.5,0.6265]
[1756993912084,1.2186,4378.9,4378.2,0.247]
[1756993912284,1.2186,4378.4,4378.2,0.247]
[1756993912483,3.2078,4378.5,4378.2,0.247]
[1756993912680,1.2186,4378.4,4377.5,0.5756]
[1756993912885,3.2078,4378.5,4378.0,2.2826]
[1756993913090,1.2186,4378.4,4378.0,2.5296]
[1756993913885,3.2078,4378.5,4378.4,1.54]
[1756993914287,3.2078,4378.5,4378.1,1.54]
[1756993914485,3.2078,4378.5,4378.4,2.2826]
[1756993914685,3.2078,4378.5,4378.4,3.8226]
[1756993914886,3.2078,4378.5,4378.4,1.54]
[1756993915384,3.2078,4378.5,4378.4,3.8226]
[1756993915792,3.2078,4378.5,4378.4,4.0696]
[1756993917793,0.2328,4378.4,4378.0,0.6265]
[1756993918087,0.2328,4378.4,4378.1,0.247]
[1756993918493,1.7728,4378.4,4378.1,0.247]
[1756993918692,1.54,4378.3,4378.1,0.247]
[1756993918892,0.2328,4378.4,4378.1,0.247]
[1756993919188,0.2328,4378.4,4378.2,0.247]
[1756993919394,1.54,4378.3,4378.2,0.247]
[1756993919692,4.2328,4378.4,4376.9,3.2078]
[1756993919894,1.54,4377.3,4376.5,1.54]
[1756993920088,1.54,4377.3,4376.5,2.1665]
[1756993920281,1.54,4377.3,4376.6,1.54]
[1756993920483,1.54,4377.3,4376.3,3.4548]
[1756993920691,1.54,4377.3,4376.4,1.54]
[1756993920887,1.54,4377.3,4376.3,3.4548]
[1756993920888,1.54,4377.3,4376.6,1.54]
[1756993921087,1.54,4377.3,4376.5,0.6265]
[1756993921088,3.2078,4377.4,4376.8,1.54]
[1756993921288,1.54,4377.8,4376.8,1.54]
[1756993921491,1.54,4377.8,4376.7,0.247]
[1756993921492,1.54,4377.2,4376.7,0.247]
[1756993921690,3.2078,4377.3,4376.7,1.787]
[1756993921990,4.7478,4377.3,4376.3,3.2078]
[1756993922197,1.54,4376.7,4376.3,3.2078]
[1756993922497,1.54,4376.7,4376.2,0.247]
[1756993922793,7.86691185,4376.8,4376.2,0.247]
[1756993922794,0.1142,4376.6,4376.3,1.54]
[1756993923101,0.1142,4376.6,4376.2,0.247]
[1756993923496,0.1142,4376.6,4376.3,1.54]
[1756993924097,0.1142,4376.6,4376.5,2.1665]
[1756993924294,2.5488,4376.7,4376.5,0.8735]
[1756993924500,3.2078,4377.9,4376.6,4.7478]
[1756993924693,0.65116543,4377.8,4376.7,1.54]
[1756993924895,2.19120414,4377.7,4376.7,1.54]
[1756993925096,3.2078,4377.9,4377.2,1.54]
[1756993925301,0.1142,4377.8,4377.5,0.6265]
[1756993925496,0.1142,4377.8,4377.6,1.54]
[1756993925697,0.1142,4377.8,4377.6,4.7478]
[1756993925996,3.2078,4379.0,4377.8,1.54]
[1756993926300,3.2078,4379.0,4378.3,1.54]
[1756993926499,3.2078,4379.0,4378.4,0.248]
[1756993927492,3.2078,4379.0,4378.5,1.54]
[1756993927699,3.2078,4379.0,4378.6,1.54]
[1756993928096,3.2078,4379.0,4378.4,0.248]
[1756993928097,3.2078,4379.0,4378.5,1.54]
[1756993928294,3.2078,4379.0,4378.4,1.788]
[1756993928597,3.2078,4379.0,4378.3,1.54]
[1756993928802,1.54,4378.9,4378.4,0.247]
[1756993929102,4.7478,4378.5,4378.4,0.247]
[1756993930197,5.3466,4378.5,4378.4,0.247]
[1756993930796,1.54,4379.4,4378.4,1.787]
[1756993930996,4.7478,4378.9,4378.5,1.54]
[1756993931197,3.2078,4378.9,4378.5,1.54]
[1756993931395,3.2078,4378.9,4378.4,0.247]
[1756993931598,3.2078,4378.9,4378.5,0.6265]
[1756993931903,3.2078,4378.9,4378.6,1.54]
[1756993932297,3.2078,4378.9,4378.5,0.6265]
[1756993932503,3.2078,4378.9,4378.2,1.4952]
[1756993932703,3.2078,4378.9,4378.4,1.4952]
[1756993932906,1.555,4378.8,4378.3,0.247]
[1756993933405,1.555,4378.8,4378.4,1.4952]
[1756993933892,3.2078,4378.9,4378.3,0.247]
[1756993934097,3.2078,4378.9,4378.3,1.7422]
[1756993935099,3.2078,4379.5,4378.5,0.5715]
[1756993935307,3.2078,4379.5,4378.6,1.4952]
[1756993935807,3.2078,4380.0,4379.3,1.4952]
[1756993936099,3.2078,4380.0,4379.2,3.2078]
[1756993936100,4.7628,4380.8,4379.8,3.2078]
[1756993936303,3.2078,4380.8,4380.0,0.5715]
[1756993936504,3.2078,4380.8,4380.5,0.5715]
[1756993936698,3.2078,4380.8,4380.6,1.4952]
[1756993936898,3.2078,4380.8,4380.7,0.247]
[1756993937100,3.2078,4380.8,4380.7,1.7422]
[1756993937604,0.6047,4380.5,4380.4,0.247]
[1756993937799,1.555,4380.4,4379.9,31.767]
[1756993938001,0.6047,4380.0,4379.9,31.767]
[1756993938197,2.1597,4380.0,4379.1,1.4952]
[1756993938511,2.1597,4380.0,4379.2,0.247]
[1756993938901,3.2078,4379.8,4379.2,0.247]
[1756993939606,3.2078,4379.8,4378.5,4.703]
[1756993939807,0.6047,4379.5,4378.6,0.247]
[1756993940008,3.2078,4379.3,4378.6,0.247]
[1756993940309,1.555,4379.4,4378.6,4.90611185]
[1756993940506,1.555,4379.4,4378.6,0.247]
[1756993940807,3.2078,4379.3,4378.5,3.2078]
[1756993941014,3.2078,4379.3,4378.6,0.247]
[1756993941015,0.6047,4379.0,4378.6,0.247]
[1756993941310,3.2078,4378.8,4378.0,0.247]
[1756993941605,1.555,4378.2,4378.0,0.247]
[1756993941803,1.555,4378.1,4378.0,0.247]
[1756993942003,3.2078,4378.3,4378.0,0.247]
[1756993942206,2.1597,4378.0,4377.3,31.516]
[1756993942412,3.2078,4377.8,4377.4,0.247]
[1756993942608,1.555,4377.4,4377.2,0.247]
[1756993942811,4.7628,4377.3,4377.2,0.247]
[1756993943309,3.2078,4377.3,4376.7,0.247]
[1756993943508,0.6047,4377.0,4376.5,0.899]
[1756993943817,0.162,4376.5,4374.1,2.85690281]
[1756993944106,0.162,4376.5,4373.1,1.4952]
[1756993944107,4.65911185,4374.2,4373.1,1.4952]
[1756993944307,4.65911185,4374.2,4373.0,0.5715]
[1756993944308,3.2078,4373.8,4372.8,0.1737997]
[1756993944502,3.2078,4373.8,4372.9,1.4952]
[1756993944713,3.2078,4373.8,4373.1,1.4952]
[1756993944906,3.2078,4373.8,4373.5,0.5715]
[1756993945214,4.65911185,4375.5,4373.7,1.4952]
[1756993945215,3.2078,4374.4,4373.7,1.4952]
[1756993945411,3.4568,4374.9,4373.7,1.4952]
[1756993945614,3.2078,4374.9,4373.7,1.4952]
[1756993948316,3.2078,4374.9,4374.0,0.5715]
[1756993949017,3.2078,4374.9,4374.1,1.4952]
[1756993949919,3.2078,4374.9,4374.5,0.5715]
[1756993950122,3.2078,4374.9,4374.6,0.248]
[1756993951029,3.2078,4374.9,4374.2,1.4952]
[1756993951222,3.2078,4374.4,4374.2,0.248]
[1756993951525,3.211,4374.9,4374.2,0.248]
[1756993951923,3.2078,4374.9,4374.3,1.4952]
[1756993952320,3.2078,4374.4,4374.1,1.7432]
[1756993952627,3.2078,4374.4,4374.2,1.4952]
[1756993952925,3.2078,4374.4,4374.1,0.248]
[1756993953126,3.2078,4374.4,4374.2,1.4952]
[1756993953525,3.2078,4374.4,4374.1,0.248]
[1756993953725,3.2078,4374.4,4374.2,1.4952]
[1756993954528,3.2078,4374.4,4374.1,0.248]
[1756993955430,0.0032,4374.3,4373.7,0.248]
[1756993955629,3.2078,4373.9,4373.4,0.248]
[1756993955825,3.211,4373.9,4372.7,4.703]
[1756993956019,3.211,4373.3,4372.9,1.4952]
[1756993956225,0.0032,4373.2,4372.8,0.1737997]
[1756993956526,3.4558,4373.3,4372.8,0.1737997]
[1756993956720,7.4558,4373.3,4372.8,0.1705997]
[1756993956921,0.22867,4373.2,4372.8,0.1705997]
[1756993957122,4.22867,4373.2,4372.8,0.1705997]
[1756993957321,0.22868,4373.1,4372.8,0.1705997]
[1756993957522,0.248,4373.0,4372.8,0.1705997]
[1756993958421,3.2078,4373.3,4372.8,0.1705997]
[1756993958619,0.248,4372.9,4372.8,0.1705997]
[1756993959227,4.248,4372.9,4372.8,0.1705997]
[1756993959832,2.6686003,4372.8,4371.7,1.4952]
[1756993960031,3.2078,4371.9,4371.7,1.4952]
[1756993960230,3.2078,4371.9,4371.5,0.8195]
[1756993960533,3.2078,4371.9,4371.6,1.4952]
[1756993960932,3.2078,4371.9,4371.7,1.4952]
[1756993961331,3.2078,4372.5,4372.0,0.5715]
[1756993961525,3.2078,4372.5,4372.2,1.4952]
[1756993962235,3.2078,4372.5,4372.1,0.248]
[1756993962432,3.2078,4372.5,4372.2,1.4491]
[1756993962732,3.2078,4372.5,4372.1,0.248]
[1756993962933,1.2616,4372.2,4372.1,0.248]
[1756993963330,3.2078,4373.3,4372.1,4.248]
[1756993963534,3.2078,4373.3,4372.2,3.2078]
[1756993964924,3.2078,4373.3,4372.3,1.4491]
[1756993965130,1.5015,4373.2,4372.4,0.248]
[1756993965330,1.5015,4372.7,4372.3,0.248]
[1756993965534,1.5015,4372.6,4372.3,0.248]
[1756993965732,1.5015,4372.6,4372.4,1.4491]
[1756993965934,1.5015,4372.5,4372.3,0.248]
[1756993966135,3.2078,4372.8,4372.3,0.248]
[1756993966328,3.2078,4372.8,4372.4,1.4491]
[1756993966630,3.2078,4372.8,4372.3,0.248]
[1756993967040,2.8792,4372.3,4372.2,0.248]
[1756993967336,2.8792,4372.3,4371.7,3.2078]
[1756993967537,4.3807,4372.3,4372.2,0.248]
[1756993967833,6.087,4372.3,4371.7,3.2078]
[1756993968040,3.2078,4371.8,4371.4,0.248]
[1756993968229,1.5015,4371.6,4371.4,0.248]
[1756993968430,1.5015,4371.5,4371.1,31.539]
[1756993968631,1.5015,4371.5,4371.3,1.4491]
[1756993969931,1.5015,4371.5,4371.4,0.248]
[1756993970130,0.6122,4371.5,4370.9,3.2078]
[1756993970332,1.5015,4371.4,4371.0,0.248]
[1756993970533,1.5015,4371.4,4370.9,3.2078]
[1756993970732,1.5015,4371.1,4370.4,4.6569]
[1756993970934,1.5015,4371.1,4370.5,0.248]
[1756993971232,1.5015,4371.1,4370.5,0.8264]
[1756993971630,2.1137,4371.5,4370.6,1.4491]
[1756993972438,2.3617,4372.0,4370.6,1.4491]
[1756993972636,0.62814014,4371.9,4370.6,1.4491]
[1756993972832,0.62814014,4371.8,4370.6,1.4491]
[1756993973029,1.5015,4372.0,4371.1,1.4491]
[1756993973341,0.62899061,4371.9,4371.3,1.4491]
[1756993973542,0.62899061,4371.8,4371.3,1.4491]
[1756993973838,1.5015,4372.0,4371.0,0.5784]
[1756993974046,1.5015,4371.8,4371.0,0.248]
[1756993974332,0.62498474,4371.7,4371.0,0.248]
[1756993974534,0.6122,4371.5,4370.5,0.5784]
[1756993974727,2.12648474,4371.4,4370.6,0.248]
[1756993974929,1.5015,4371.4,4370.6,0.248]
[1756993975638,0.62179165,4371.3,4370.6,0.248]
[1756993975839,1.5015,4371.4,4370.6,0.248]
[1756993976138,0.62179385,4371.3,4370.6,0.248]
[1756993976333,3.2078,4371.2,4370.4,4.6569]
[1756993976634,1.5015,4371.1,4370.7,0.248]
[1756993976836,1.23388373,4371.0,4370.7,0.248]
[1756993977136,1.5015,4370.8,4370.7,0.248]
[1756993977535,1.5015,4370.8,4370.0,0.5784]
[1756993977536,1.5015,4370.7,4369.8,1.4491]
[1756993977732,4.7093,4370.7,4369.9,0.248]
[1756993977932,6.6573,4370.7,4369.9,0.248]
[1756993978133,0.6216464,4370.6,4369.9,0.248]
[1756993978333,0.62156603,4370.5,4369.9,0.248]
[1756993978539,6.6573,4370.7,4370.0,0.248]
[1756993978728,0.621576,4370.6,4370.0,0.248]
[1756993978931,1.5015,4370.4,4370.1,1.4491]
[1756993979128,6.6573,4370.7,4370.1,1.4491]
[1756993979329,0.62146826,4370.6,4370.1,1.4491]
[1756993979530,1.5015,4370.4,4370.1,1.4491]
[1756993979735,1.5015,4370.6,4369.7,34.7658]
[1756993980035,1.5015,4370.6,4369.9,1.4491]
[1756993980036,0.6214334,4370.5,4369.9,1.4491]
[1756993980239,0.6214334,4370.4,4369.8,0.248]
[1756993980426,0.6214334,4370.3,4370.1,1.4491]
[1756993980630,5.1558,4370.7,4370.1,1.4491]
[1756993980833,0.73599635,4370.6,4370.0,4.64248548]
[1756993981033,0.62159635,4370.5,4370.1,1.4491]
[1756993981234,0.1144,4370.6,4370.2,0.248]
[1756993981434,0.61637302,4370.5,4370.3,1.4491]
[1756993981634,2.11787302,4370.4,4370.1,1.4491]
[1756993981838,0.1144,4370.6,4370.2,0.248]
[1756993982138,0.61374374,4370.5,4370.4,1.4491]
[1756993983233,0.1144,4370.6,4370.5,2.0275]
[1756993983434,5.1558,4370.7,4370.6,1.4491]
[1756993983641,5.76764464,4370.7,4370.6,1.6971]
[1756993983843,5.1558,4370.7,4370.6,1.6971]
[1756993984543,4.7093,4370.7,4370.6,0.248]
[1756993984940,0.0453,4370.5,4370.0,0.5784]
[1756993985139,0.0453,4370.5,4370.1,4.31208548]
[1756993985343,0.0453,4370.5,4370.4,3.2078]
[1756993985539,0.1143,4370.9,4370.5,0.41174]
[1756993985845,3.2078,4371.5,4371.0,0.4641]
[1756993986049,4.7093,4372.3,4371.2,4.06408548]
[1756993986343,0.59165576,4372.2,4371.6,4.06408548]
[1756993986537,0.59165576,4372.1,4371.7,0.65962]
[1756993986741,1.5015,4373.3,4372.0,7.85028548]
[1756993986940,1.5015,4373.2,4372.4,5.51318548]
[1756993987244,3.2078,4373.9,4372.9,3.2078]
[1756993987543,0.5763606,4373.4,4373.0,0.248]
[1756993987744,3.78416018,4373.3,4373.1,0.248]
[1756993987938,0.57636018,4373.2,4371.3,33.0211]
[1756993988138,1.5015,4372.7,4371.4,0.248]
[1756993988338,1.5015,4372.2,4371.4,0.248]
[1756993988545,1.5015,4372.2,4371.3,33.0211]
[1756993988843,1.5015,4372.2,4371.4,0.248]
[1756993989350,1.5015,4372.2,4371.5,0.248]
[1756993989841,0.6122,4372.0,4371.3,31.572]
[1756993990042,0.6122,4371.5,4371.4,0.248]
[1756993990252,1.5015,4371.4,4371.3,31.572]
[1756993990444,1.5015,4371.4,4371.3,31.82]
[1756993990748,1.5015,4371.4,4370.6,3.2078]
[1756993990749,0.6122,4371.0,4370.6,3.2078]
[1756993990946,1.5015,4370.9,4370.7,0.248]
[1756993991250,1.5015,4370.9,4370.8,0.248]
[1756993991549,1.5015,4371.0,4370.8,0.248]
[1756993991750,3.2078,4371.2,4370.8,0.248]
[1756993991942,1.5015,4370.9,4370.8,0.248]
[1756993992137,0.6122,4371.0,4370.5,3.2078]
[1756993992343,1.5319,4370.9,4370.6,0.248]
[1756993992545,3.2078,4371.2,4370.6,0.248]
[1756993993243,3.2078,4371.2,4370.9,1.5674]
[1756993993548,1.5319,4371.1,4371.0,0.248]
[1756993993952,3.2078,4371.2,4371.0,1.8154]
[1756993994150,1.5319,4371.1,4371.0,0.248]
[1756993994444,1.5319,4371.1,4370.5,4.7752]
[1756993994643,1.5319,4371.1,4370.6,0.248]
[1756993995042,1.5319,4370.9,4370.6,0.248]
[1756993995239,1.5319,4370.8,4370.5,3.2078]
[1756993995541,0.6162,4371.0,4370.6,0.248]
[1756993995542,1.5319,4370.9,4370.6,0.248]
[1756993995737,0.6162,4371.0,4370.6,0.248]
[1756993995942,1.5319,4370.9,4370.6,0.248]
[1756993996142,0.6162,4371.0,4370.6,0.248]
[1756993996353,1.5319,4370.9,4370.6,0.248]
[1756993996648,1.5319,4371.0,4370.7,1.5674]
[1756993996951,1.5319,4371.6,4370.8,1.5674]
[1756993997348,3.2078,4371.9,4371.2,1.5674]
[1756993997646,3.2078,4371.9,4371.3,0.248]
[1756993997853,1.5319,4371.7,4371.3,0.248]
[1756993998151,3.2078,4371.9,4371.3,0.248]
[1756993998948,3.2078,4371.9,4371.6,4.06408548]
[1756993999147,3.2078,4371.9,4371.7,0.248]
[1756993999745,1.5319,4372.6,4371.8,7.43654]
[1756993999953,1.5319,4373.1,4372.4,4.06408548]
[1756994000146,0.6162,4373.5,4372.5,0.248]
[1756994000340,2.1481,4373.5,4372.8,4.06408548]
[1756994000645,2.1481,4373.5,4372.9,0.248]
[1756994002249,1.5319,4373.5,4372.9,0.248]
[1756994002552,0.6162,4374.0,4373.3,4.06408548]
[1756994002753,0.6162,4374.0,4373.4,0.248]
[1756994002952,1.5319,4373.9,4373.5,0.248]
[1756994003150,0.6162,4374.0,4373.5,0.248]
[1756994003353,1.5319,4373.9,4373.5,0.248]
[1756994003953,0.6162,4374.0,4373.5,0.248]
[1756994004149,1.5319,4373.9,4373.5,0.248]
[1756994004343,0.6162,4374.5,4373.5,0.248]
[1756994004344,1.5319,4374.4,4373.5,0.7582]
[1756994004547,0.6162,4374.0,4373.8,3.2078]
[1756994004751,1.5319,4373.9,4373.8,3.2078]
[1756994005053,1.5319,4373.9,4373.8,3.4548]
[1756994005250,1.5319,4373.9,4373.8,0.247]
[1756994007956,1.5319,4373.9,4373.1,34.7738]
[1756994007957,1.5319,4373.7,4373.1,34.7738]
[1756994008152,1.5319,4373.7,4373.2,0.247]
[1756994008352,3.6762,4373.8,4373.2,0.247]
[1756994008559,1.5319,4373.4,4373.2,0.247]
[1756994008752,0.6162,4373.5,4373.1,34.7738]
[1756994008953,1.5319,4373.4,4373.1,31.566]
[1756994009154,1.5319,4373.4,4373.2,0.247]
[1756994009655,1.5319,4373.4,4373.1,31.566]
[1756994009857,1.5319,4373.4,4373.2,0.247]
[1756994010462,0.6162,4373.5,4373.3,0.247]
[1756994010659,1.5319,4373.4,4373.1,31.566]
[1756994010957,0.6162,4372.5,4372.1,3.2078]
[1756994011160,1.5319,4372.4,4372.2,0.247]
[1756994012058,0.6162,4372.5,4372.1,3.2078]
[1756994012459,1.5319,4372.4,4372.2,0.247]
[1756994012653,3.2078,4372.3,4372.2,0.247]
[1756994012860,0.6162,4372.0,4371.7,31.558]
[1756994013057,0.6162,4371.5,4371.0,3.2078]
[1756994013269,0.6162,4371.0,4370.7,2.04693952]
[1756994013458,1.5319,4370.9,4370.8,0.247]
[1756994013661,2.1481,4370.5,4370.4,3.2078]
[1756994013864,2.1481,4370.5,4370.4,3.4548]
[1756994015268,1.5319,4370.4,4369.8,3.2078]
[1756994015471,0.6162,4370.0,4369.9,0.247]
[1756994015673,2.1481,4370.0,4369.8,0.247]
[1756994016172,1.5319,4369.9,4369.8,0.247]
[1756994016866,1.5319,4369.7,4369.2,3.2078]
[1756994017068,1.5319,4369.7,4369.3,0.247]
[1756994017259,0.6162,4369.5,4369.3,0.247]
[1756994017457,1.5319,4369.4,4369.3,0.247]
[1756994018369,2.0306,4369.8,4369.3,0.247]
[1756994018971,1.5319,4369.7,4369.3,0.247]
[1756994019171,0.6162,4369.5,4369.3,0.247]
[1756994019379,1.5319,4369.4,4369.3,0.247]
[1756994020769,0.6162,4369.0,4368.7,34.7688]
[1756994020962,1.5319,4368.9,4368.7,3.2078]
[1756994021271,1.5319,4368.9,4368.8,0.247]
[1756994021970,1.5319,4369.4,4368.8,0.247]
[1756994022466,1.5319,4369.4,4369.1,5.31278548]
[1756994022663,1.5319,4369.4,4369.2,0.247]
[1756994022862,1.5319,4369.4,4369.3,0.247]
[1756994023872,1.5546,4369.4,4369.3,0.247]
[1756994025065,0.5946,4369.0,4368.7,3.2078]
[1756994025266,1.5546,4368.9,4368.8,0.247]
[1756994028062,1.5546,4368.9,4368.3,0.2242767]
[1756994028274,2.1492,4368.5,4368.4,0.247]
[1756994028570,2.1492,4368.5,4368.2,3.2078]
[1756994028771,3.2078,4369.1,4368.4,5.31278548]
[1756994028968,1.5546,4368.9,4368.3,0.247]
[1756994029977,2.1708,4369.5,4368.7,4.4565]
[1756994030168,2.1708,4369.5,4368.8,0.247]
[1756994030370,0.6162,4369.5,4368.7,3.2078]
[1756994030571,3.2078,4370.3,4368.8,0.247]
[1756994030770,1.5546,4370.2,4369.8,4.06408548]
[1756994030972,1.5546,4370.1,4369.9,0.247]
[1756994031178,3.2078,4370.3,4370.0,1.2487]
[1756994031472,3.2078,4370.3,4369.9,0.247]
[1756994031676,1.5546,4370.8,4370.2,5.31278548]
[1756994031867,3.8024,4371.0,4370.3,0.247]
[1756994032064,1.5546,4370.9,4370.7,4.06408548]
[1756994032271,1.5546,4371.4,4370.8,0.247]
[1756994035571,0.5946,4371.5,4370.5,4.4565]
[1756994035777,0.5946,4371.5,4370.6,0.247]
[1756994035981,1.5546,4371.4,4370.6,0.247]
[1756994036382,1.5546,4370.9,4370.7,0.247]
[1756994036579,1.5546,4370.9,4370.5,3.2078]
[1756994036880,1.5546,4370.7,4370.6,0.247]
[1756994037268,1.5546,4370.7,4369.7,4.06408548]
[1756994037576,1.5546,4369.9,4369.7,4.06408548]
[1756994037878,1.5546,4369.9,4369.8,0.247]
[1756994038274,1.5546,4369.9,4369.6,3.2078]
[1756994038474,1.5546,4369.9,4369.7,0.247]
[1756994038676,1.5546,4369.9,4369.8,0.247]
[1756994040780,1.5546,4370.4,4369.8,0.247]
[1756994040974,1.5546,4370.4,4369.9,5.31278548]
[1756994041170,1.5546,4370.4,4370.2,4.4565]
[1756994041375,0.5946,4370.5,4370.3,0.247]
[1756994041571,1.5546,4370.4,4370.3,0.247]
[1756994042687,4.7624,4370.4,4370.3,0.247]
[1756994043977,1.5546,4370.3,4370.2,0.247]
[1756994044383,1.5546,4370.3,4369.1,4.4565]
[1756994044384,6.964,4370.3,4369.1,3.2078]
[1756994044584,0.5946,4369.5,4369.2,0.247]
[1756994044784,1.5546,4369.4,4369.2,0.247]
[1756994045086,2.1492,4369.5,4369.2,0.247]
[1756994045285,0.5946,4369.5,4369.2,0.247]
[1756994045484,1.5546,4369.4,4369.2,0.247]
[1756994045881,0.5946,4369.5,4369.2,0.247]
[1756994046184,0.5946,4369.5,4369.1,3.2078]
[1756994046386,1.5546,4369.4,4369.2,0.247]
[1756994047376,1.5546,4369.4,4369.1,3.2078]
[1756994047577,1.5546,4368.9,4368.8,31.577]
[1756994047777,1.5546,4368.9,4368.8,31.824]
[1756994050191,1.5546,4368.9,4368.8,31.577]
[1756994050491,1.5546,4368.9,4368.8,31.824]
[1756994051885,1.5546,4368.9,4368.8,31.577]
[1756994052092,1.5546,4368.9,4368.8,31.824]
[1756994052986,3.2078,4369.2,4368.8,31.824]
[1756994053181,3.2078,4369.2,4368.9,1.514]
[1756994053389,1.4937,4369.1,4369.0,0.247]
[1756994053784,3.2078,4369.2,4369.0,2.3788]
[1756994053981,3.2078,4369.7,4369.1,1.514]
[1756994054297,3.2078,4369.7,4369.3,1.514]
[1756994054586,4.7015,4370.8,4369.6,1.514]
[1756994054784,4.7015,4370.8,4369.8,1.514]
[1756994054987,4.7015,4370.8,4370.0,2.1318]
[1756994055289,4.7015,4370.8,4370.1,1.514]
[1756994055484,4.7015,4370.8,4370.3,1.514]
[1756994055683,3.2078,4370.8,4370.3,1.514]
[1756994056195,3.2078,4371.6,4370.6,1.514]
[1756994056386,3.2078,4371.6,4370.7,0.247]
[1756994056687,3.2078,4371.6,4370.8,1.514]
[1756994056896,3.2078,4371.6,4370.8,1.74277]
[1756994057092,3.2078,4372.1,4371.5,0.6178]
[1756994057391,1.4937,4372.0,4371.7,1.514]
[1756994057591,1.4937,4372.0,4371.8,0.247]
[1756994057789,1.4937,4372.0,4371.9,0.247]
[1756994058193,3.6234,4371.9,4371.1,3.2078]
[1756994058390,3.6234,4371.9,4371.2,0.247]
[1756994058391,1.4937,4371.6,4371.2,0.247]
[1756994058591,3.2078,4371.7,4371.2,1.761]
[1756994058789,1.4937,4371.6,4371.2,1.761]
[1756994059095,3.2078,4371.7,4371.2,1.761]
[1756994059299,1.4937,4371.6,4371.3,1.514]
[1756994059589,3.2078,4371.7,4371.3,1.514]
[1756994059795,1.4937,4371.6,4371.3,1.514]
[1756994060197,3.2078,4371.7,4371.2,0.247]
[1756994060395,0.5819,4371.5,4371.2,0.247]
[1756994060597,1.4937,4371.4,4371.2,0.247]
[1756994060901,1.4937,4371.4,4371.2,1.761]
[1756994061201,1.4937,4371.3,4371.2,0.247]
[1756994061697,4.7015,4371.7,4371.2,0.247]
[1756994061900,1.4937,4371.6,4371.2,0.247]
[1756994062093,3.2078,4371.7,4371.3,1.514]
[1756994062298,3.2078,4372.4,4371.5,0.6178]
[1756994062505,3.2078,4372.4,4371.6,1.761]
[1756994063395,1.4937,4372.5,4371.6,1.761]
[1756994063590,1.4937,4372.5,4371.7,1.514]
[1756994063994,3.2078,4372.9,4371.7,1.514]
[1756994064501,3.2078,4372.9,4372.3,1.514]
[1756994064798,3.2078,4372.9,4372.6,1.514]
[1756994065004,3.2078,4372.9,4372.5,0.6178]
[1756994065997,3.2078,4372.9,4372.6,1.514]
[1756994066305,4.7015,4372.9,4372.5,0.6178]
[1756994066496,3.2078,4372.9,4372.8,1.514]
[1756994066996,0.5819,4374.0,4372.9,1.514]
[1756994066997,3.2078,4373.4,4372.9,1.514]
[1756994067201,4.7015,4373.4,4372.8,4.7218]
[1756994067602,3.2078,4373.4,4372.8,3.2078]
[1756994067802,1.4937,4373.3,4372.9,0.247]
[1756994067996,3.2078,4373.4,4372.9,1.761]
[1756994068196,1.4937,4373.3,4372.8,3.2078]
[1756994068393,3.2078,4373.4,4372.9,0.247]
[1756994068591,1.4937,4373.3,4372.9,0.247]
[1756994068799,1.4937,4373.2,4372.9,0.247]
[1756994068993,1.4937,4373.3,4372.9,0.247]
[1756994069196,3.2078,4373.4,4372.9,0.247]
[1756994069597,1.4937,4373.2,4372.9,1.761]
[1756994069797,1.4937,4373.2,4373.0,1.514]
[1756994070503,4.7015,4373.4,4372.9,0.247]
[1756994070700,3.2078,4373.4,4373.1,1.514]
[1756994071002,1.4937,4374.2,4373.2,0.247]
[1756994072006,1.4937,4374.2,4373.2,0.42533573]
[1756994072600,1.4937,4374.2,4373.2,0.17833573]
[1756994072799,1.4937,4374.2,4373.3,0.247]
[1756994072995,0.5819,4373.0,4372.9,3.39151711]
[1756994073201,2.0756,4373.0,4372.9,3.4548]
[1756994073603,2.0756,4373.0,4372.9,3.2078]
[1756994073802,2.0756,4373.0,4372.9,3.4548]
[1756994075003,2.0756,4373.0,4372.9,3.4538]
[1756994075409,2.0756,4373.0,4372.9,0.246]
[1756994075609,1.4937,4372.9,4372.0,34.7828]
[1756994075908,1.4937,4372.4,4372.1,0.246]
[1756994076104,1.4937,4372.4,4372.0,34.7828]
[1756994076306,1.4937,4372.4,4372.1,0.246]
[1756994077409,3.2078,4372.3,4372.1,0.246]
[1756994077611,1.4937,4372.1,4372.0,31.575]
[1756994077810,1.4937,4372.1,4372.0,31.821]
[1756994080011,3.2078,4372.3,4371.3,3.2078]